[Event "44th Chess Olympiad Open 2022"]
[Site "Chennai"]
[Date "2022.08.08"]
[Round "10.89"]
[White "Depaune, Ricko"]
[Black "Stratonowitsch, Andre"]
[Result "0-1"]
[WhiteElo "1726"]
[BlackElo "2142"]
[Annotator "NA RC"]
[PlyCount "106"]
[EventDate "2022.??.??"]
[TimeControl "60"]

1. e4 {[%emt 0:00:02]} c5 {[%emt 0:00:03]} 2. Nf3 {[%emt 0:00:05]} Nc6 {
[%emt 0:00:17]} 3. c3 {[%emt 0:00:04]} d5 {[%emt 0:00:10]} 4. exd5 {[%emt 0:00:
00]} Qxd5 {[%emt 0:00:09]} 5. d4 {[%emt 0:01:22]} Bg4 {[%emt 0:00:26]} 6. Be2 {
[%emt 0:00:14]} cxd4 {[%emt 0:00:10]} 7. cxd4 {[%emt 0:00:38]} e6 {[%emt 0:00:
00]} 8. Nc3 {[%emt 0:00:05]} Qd6 {[%emt 0:00:04]} 9. Be3 {[%emt 0:00:41]} Nf6 {
[%emt 0:00:22]} 10. O-O {[%emt 0:00:51]} Be7 {[%emt 0:00:14]} 11. Rc1 {[%emt 0:
00:00]} O-O {[%emt 0:00:13]} 12. h3 {[%emt 0:00:05]} Bh5 {[%emt 0:00:36]} 13.
Qd2 {[%emt 0:00:20]} Nb4 {[%emt 0:06:18]} 14. Nb5 {[%emt 0:01:20]} Qd8 {
[%emt 0:00:14]} 15. Nc3 {[%emt 0:08:54]} Rc8 {[%emt 0:01:10]} 16. g4 {[%emt 0:
00:00]} Bg6 {[%emt 0:01:07]} 17. Ne5 {[%emt 0:00:11]} Ne4 {[%emt 0:14:31]} 18.
Nxe4 {[%emt 0:02:38]} Bxe4 {[%emt 0:00:16]} 19. a3 {[%emt 0:01:15]} Nc6 {
[%emt 0:04:46]} 20. f4 {[%emt 0:08:03]} Bd6 {[%emt 0:03:24]} 21. Bf3 {[%emt 0:
00:00]} Bxf3 {[%emt 0:03:07]} 22. Nxf3 {[%emt 0:01:00]} Ne7 {[%emt 0:01:31]}
23. Rce1 {[%emt 0:06:41]} Nd5 {[%emt 0:06:17]} 24. Ng5 {[%emt 0:02:29]} Be7 {
[%emt 0:06:36]} 25. Ne4 {[%emt 0:01:41]} Qb6 {[%emt 0:02:40]} 26. Re2 {[%emt 0:
00:00]} Rc4 {[%emt 0:13:50]} 27. Rd1 {[%emt 0:03:14]} Rd8 {[%emt 0:04:40]} 28.
Bf2 {[%emt 0:01:02]} Qb3 {[%emt 0:00:20]} 29. Ng3 {[%emt 0:03:53]} Rdc8 {
[%emt 0:03:20]} 30. f5 {[%emt 0:11:17]} Rc2 {[%emt 0:02:30]} 31. Qd3 {[%emt 0:
00:00]} Qxd3 {[%emt 0:02:31]} 32. Rxd3 {[%emt 0:00:02]} Nf4 {[%emt 0:00:40]}
33. Rxc2 {[%emt 0:02:11]} Rxc2 {[%emt 0:00:10]} 34. Rb3 {[%emt 0:01:26]} Nxh3+
{[%emt 0:00:48]} 35. Kg2 {[%emt 0:00:02]} Nxf2 {[%emt 0:00:43]} 36. Rxb7 {
[%emt 0:00:53]} Nxg4+ {[%emt 0:02:54]} 37. Kf3 {[%emt 0:00:04]} Nh2+ {[%emt 0:
00:00]} 38. Ke3 {[%emt 0:00:37]} Bf8 {[%emt 0:03:46]} 39. fxe6 {[%emt 0:02:07]}
fxe6 {[%emt 0:00:10]} 40. Kd3 {[%emt 0:00:20]} Rg2 {[%emt 0:01:47]} 41. Ne4 {
[%emt 0:30:03]} Nf3 {[%emt 0:37:28]} 42. b4 {[%emt 0:06:28]} Ng5 {[%emt 0:00:
00]} 43. a4 {[%emt 0:01:07]} Nxe4 {[%emt 0:03:23]} 44. Kxe4 {[%emt 0:00:04]} a6
{[%emt 0:00:22]} 45. b5 {[%emt 0:03:38]} axb5 {[%emt 0:01:26]} 46. axb5 {
[%emt 0:00:03]} Rg5 {[%emt 0:01:13]} 47. Rb8 {[%emt 0:00:15]} Kf7 {[%emt 0:00:
00]} 48. b6 {[%emt 0:00:03]} Rb5 {[%emt 0:00:37]} 49. Kd3 {[%emt 0:00:51]} Be7
{[%emt 0:01:43]} 50. b7 {[%emt 0:00:24]} h5 {[%emt 0:00:51]} 51. Kc4 {[%emt 0:
00:00]} Rb4+ {[%emt 0:00:13]} 52. Kc3 {[%emt 0:00:10]} h4 {[%emt 0:00:14]} 53.
Rh8 {[%emt 0:01:23]} Rxb7 {[%emt 0:00:05]} 0-1

[Event "44th Chess Olympiad Open 2022"]
[Site "Chennai"]
[Date "2022.08.08"]
[Round "10.90"]
[White "Koumba, Mounguen Jose Evrar"]
[Black "Senglek, Khonsavanh"]
[Result "1-0"]
[WhiteElo "1942"]
[BlackElo "1253"]
[Annotator "NA RC"]
[PlyCount "77"]
[EventDate "2022.??.??"]
[TimeControl "60"]

1. e4 {[%emt 0:00:05]} c5 {[%emt 0:00:12]} 2. Nf3 {[%emt 0:00:14]} Nc6 {
[%emt 0:00:09]} 3. d4 {[%emt 0:00:16]} cxd4 {[%emt 0:00:54]} 4. Nxd4 {[%emt 0:
00:00]} Nxd4 {[%emt 0:00:31]} 5. Qxd4 {[%emt 0:00:07]} e6 {[%emt 0:00:27]} 6.
Nc3 {[%emt 0:00:50]} a6 {[%emt 0:00:28]} 7. Bf4 {[%emt 0:01:36]} Ne7 {[%emt 0:
00:00]} 8. O-O-O {[%emt 0:03:08]} Nc6 {[%emt 0:00:20]} 9. Qe3 {[%emt 0:00:19]}
b5 {[%emt 0:02:07]} 10. e5 {[%emt 0:03:14]} Qa5 {[%emt 0:00:59]} 11. Kb1 {
[%emt 0:01:19]} Bb7 {[%emt 0:02:55]} 12. Qg3 {[%emt 0:03:14]} Nb4 {[%emt 0:00:
00]} 13. Be2 {[%emt 0:04:53]} Rc8 {[%emt 0:00:22]} 14. a3 {[%emt 0:00:13]} Nd5
{[%emt 0:00:57]} 15. Nxd5 {[%emt 0:02:11]} Bxd5 {[%emt 0:00:15]} 16. Bf3 {
[%emt 0:00:20]} Qc7 {[%emt 0:01:54]} 17. Rd2 {[%emt 0:00:51]} Bb7 {[%emt 0:00:
00]} 18. Rhd1 {[%emt 0:05:16]} Bc6 {[%emt 0:00:46]} 19. c3 {[%emt 0:06:06]} h6
{[%emt 0:13:34]} 20. Bxc6 {[%emt 0:05:22]} dxc6 {[%emt 0:00:33]} 21. h4 {
[%emt 0:13:46]} g6 {[%emt 0:05:02]} 22. Qe3 {[%emt 0:00:35]} c5 {[%emt 0:02:44]
} 23. Qe4 {[%emt 0:00:58]} Bg7 {[%emt 0:06:07]} 24. Rd7 {[%emt 0:01:01]} Qxd7 {
[%emt 0:19:42]} 25. Rxd7 {[%emt 0:00:07]} Kxd7 {[%emt 0:00:07]} 26. Qb7+ {
[%emt 0:00:05]} Rc7 {[%emt 0:00:01]} 27. Qxa6 {[%emt 0:00:09]} Rb8 {[%emt 0:00:
00]} 28. Qd6+ {[%emt 0:00:44]} Kc8 {[%emt 0:00:34]} 29. Be3 {[%emt 0:00:22]}
Rbb7 {[%emt 0:08:21]} 30. Bxc5 {[%emt 0:02:34]} Rd7 {[%emt 0:00:25]} 31. Qc6+ {
[%emt 0:00:40]} Kd8 {[%emt 0:00:08]} 32. Bb6+ {[%emt 0:00:14]} Rxb6 {[%emt 0:
00:00]} 33. Qxb6+ {[%emt 0:04:58]} Kc8 {[%emt 0:00:13]} 34. Qxb5 {[%emt 0:00:
00]} Rb7 {[%emt 0:00:54]} 35. Qe8+ {[%emt 0:00:14]} Kc7 {[%emt 0:00:21]} 36.
Qxf7+ {[%emt 0:00:06]} Kb8 {[%emt 0:00:14]} 37. Qxe6 {[%emt 0:00:11]} Ka7 {
[%emt 0:00:26]} 38. f4 {[%emt 0:00:18]} Bf8 {[%emt 0:00:13]} 39. Ka2 {[%emt 0:
00:00]} 1-0